fUST/lending_fUST_20250723
["ID","MTS","AMOUNT","RATE_DAILY","PERIOD"]
[374386125,1753284642020,-1670.44,0.0002,2]
[374386127,1753284642029,-460.0,0.0002,2]
[374386129,1753284642039,-460.0,0.0002,2]
[374386131,1753284642048,-197.17826598,0.0002,2]
[374386133,1753284642057,-594.75,0.0002,2]
[374386135,1753284642066,-460.0,0.0002,2]
[374386137,1753284642075,-460.0,0.0002,2]
[374386139,1753284642085,-7718.72,0.0002,2]
[374386141,1753284642094,-360.0,0.0002,2]
[374386143,1753284642103,-460.0,0.0002,2]
[374386145,1753284642113,-2108.24,0.0002,2]
[374386147,1753284642126,-531.73,0.0002,2]
[374386149,1753284642135,-460.0,0.0002,2]
[374386151,1753284642144,-460.0,0.0002,2]
[374386153,1753284642154,-460.0,0.0002,2]
[374386155,1753284642163,-460.0,0.0002,2]
[374386157,1753284642172,-2407.52,0.0002,2]
[374386159,1753284642182,-460.0,0.0002,2]
[374386161,1753284642191,-460.0,0.0002,2]
[374386163,1753284642200,-197.24,0.0002,2]
[374386165,1753284642209,-460.0,0.0002,2]
[374386166,1753284642218,-460.0,0.0002,2]
[374386168,1753284642229,-460.0,0.0002,2]
[374386170,1753284642239,-2149.86,0.0002,2]
[374386172,1753284642248,-1740.13,0.0002,2]
[374386174,1753284642258,-460.0,0.0002,2]
[374386176,1753284642267,-460.0,0.0002,2]
[374386178,1753284642276,-460.0,0.0002,2]
[374386180,1753284642285,-9387.05962993,0.0002,2]
[374386182,1753284642295,-3196.09786644,0.0002,2]
[374386184,1753284642304,-362.89968044,0.0002,2]
[374386186,1753284642314,-460.0,0.0002,2]
[374386188,1753284642324,-37620.25626344,0.0002,2]
[374386190,1753284642334,-460.0,0.0002,2]
[374386192,1753284642343,-460.0,0.0002,2]
[374386194,1753284642353,-460.0,0.0002,2]
[374386196,1753284642362,-460.0,0.0002,2]
[374386198,1753284642371,-460.0,0.0002,2]
[374386200,1753284642382,-620.32,0.0002,2]
[374386202,1753284642391,-1935.16,0.0002,2]
[374386204,1753284642400,-460.0,0.0002,2]
[374386207,1753284642410,-1222.1,0.0002,2]
[374386210,1753284642419,-460.0,0.0002,2]
[374386212,1753284642428,-460.0,0.0002,2]
[374386215,1753284642438,-460.0,0.0002,2]
[374386218,1753284642447,-1132.02,0.0002,2]
[374386221,1753284642457,-804.88,0.0002,2]
[374386224,1753284642466,-460.0,0.0002,2]
[374386227,1753284642476,-472.82,0.0002,2]
[374386229,1753284642485,-2564.0,0.0002,2]
[374386231,1753284642499,-460.0,0.0002,2]
[374386233,1753284642508,-489.23,0.0002,2]
[374386235,1753284642518,-460.0,0.0002,2]
[374386237,1753284642528,-460.0,0.0002,2]
[374386239,1753284642538,-460.0,0.0002,2]
[374386241,1753284642548,-460.0,0.0002,2]
[374386243,1753284642558,-558.81630607,0.00020008,2]
[374386245,1753284642569,-1339.59858964,0.00020009,2]
[374386249,1753284642579,-160.0,0.00020026,2]
[374386252,1753284642589,-456.426376,0.00020187,2]
[374386254,1753284642599,-1000.0,0.0002023,2]
[374386256,1753284642608,-1500.0,0.00020268,2]
[374386258,1753284642618,-1500.0,0.00020268,2]
[374386260,1753284642629,-460.0,0.00020273,2]
[374386262,1753284642638,-460.0,0.00020273,2]
[374386264,1753284642648,-460.0,0.00020273,2]
[374386266,1753284642657,-460.0,0.00020273,2]
[374386268,1753284642667,-460.0,0.00020273,2]
[374386270,1753284642676,-460.0,0.00020273,2]
[374386272,1753284642685,-460.0,0.00020273,2]
[374386274,1753284642695,-460.0,0.00020273,2]
[374386276,1753284642705,-460.0,0.00020273,2]
[374386278,1753284642714,-460.0,0.00020273,2]
[374386280,1753284642723,-460.0,0.00020273,2]
[374386282,1753284642733,-293.8,0.00020273,2]
[374386284,1753284642743,-460.0,0.00020273,2]
[374386286,1753284642752,-664.28,0.00020273,2]
[374386288,1753284642762,-460.0,0.00020273,2]
[374386290,1753284642771,-460.0,0.00020273,2]
[374386292,1753284642781,-185.80530974,0.00020273,2]
[374386294,1753284642790,-206.14702574,0.00020273,2]
[374386296,1753284642800,-415.02,0.00020273,2]
[374386298,1753284642810,-460.0,0.00020273,2]
[374386300,1753284642819,-1670.44,0.00020273,2]
[374386302,1753284642829,-464.15,0.00020273,2]
[374386304,1753284642839,-460.0,0.00020273,2]
[374386306,1753284642849,-594.75,0.00020273,2]
[374386308,1753284642858,-460.0,0.00020273,2]
[374386310,1753284642867,-460.0,0.00020273,2]
[374386312,1753284642881,-7718.72,0.00020273,2]
[374386314,1753284642890,-460.0,0.00020273,2]
[374386316,1753284642899,-2108.24,0.00020273,2]
[374386318,1753284642909,-460.0,0.00020273,2]
[374386320,1753284642918,-460.0,0.00020273,2]
[374386322,1753284642928,-460.0,0.00020273,2]
[374386324,1753284642937,-460.0,0.00020273,2]
[374386326,1753284642947,-2407.52,0.00020273,2]
[374386328,1753284642956,-460.0,0.00020273,2]
[374386330,1753284642966,-460.0,0.00020273,2]
[374386332,1753284642976,-460.0,0.00020273,2]
[374386334,1753284642985,-460.0,0.00020273,2]
[374386335,1753284642994,-460.0,0.00020273,2]
[374386337,1753284643004,-2149.86,0.00020273,2]
[374386339,1753284643014,-1740.13,0.00020273,2]
[374386341,1753284643023,-460.0,0.00020273,2]
[374386343,1753284643032,-460.0,0.00020273,2]
[374386345,1753284643041,-460.0,0.00020273,2]
[374386347,1753284643051,-460.0,0.00020273,2]
[374386349,1753284643060,-460.0,0.00020273,2]
[374386351,1753284643070,-460.0,0.00020273,2]
[374386353,1753284643080,-460.0,0.00020273,2]
[374386355,1753284643090,-460.0,0.00020273,2]
[374386358,1753284643099,-460.0,0.00020273,2]
[374386361,1753284643108,-620.32,0.00020273,2]
[374386363,1753284643118,-1935.16,0.00020273,2]
[374386365,1753284643135,-460.0,0.00020273,2]
[374386367,1753284643144,-460.0,0.00020273,2]
[374386369,1753284643154,-1222.1,0.00020273,2]
[374386371,1753284643163,-460.0,0.00020273,2]
[374386373,1753284643173,-460.0,0.00020273,2]
[374386375,1753284643182,-1132.02,0.00020273,2]
[374386377,1753284643192,-804.88,0.00020273,2]
[374386379,1753284643201,-460.0,0.00020273,2]
[374386381,1753284643211,-472.82,0.00020273,2]
[374386383,1753284643220,-2564.0,0.00020273,2]
[374386385,1753284643229,-489.23,0.00020273,2]
[374386387,1753284643239,-443.46108589,0.00020273,2]
[374386390,1753284643248,-460.0,0.00020273,2]
[374386391,1753284643257,-369.58098645,0.00020273,2]
[374386392,1753284643266,-1000.0,0.00020309,2]
[374386393,1753284643276,-1095.20899026,0.00020309,2]
[374386394,1753284643285,-1000.0,0.00020309,2]
[374386395,1753284643294,-2426.18,0.00020338,3]
[374386396,1753284643303,-1213.08,0.00020338,3]
[374386397,1753284643313,-606.54,0.00020338,3]
[374386398,1753284643322,-606.54,0.00020338,3]
[374386399,1753284643331,-571.0935272,0.000204,2]
[374386400,1753284643340,-396.69424928,0.00020547,2]
[374386401,1753284643350,-460.0,0.00020547,2]
[374386402,1753284643359,-151.68,0.00020547,2]
[374386403,1753284643368,-195.74,0.00020547,2]
[374386404,1753284643380,-460.0,0.00020547,2]
[374386405,1753284643390,-460.0,0.00020547,2]
[374386406,1753284643399,-502.49735592,0.00020547,2]
[374386407,1753284643408,-460.0,0.00020547,2]
[374386408,1753284643417,-460.0,0.00020547,2]
[374386409,1753284643426,-460.0,0.00020547,2]
[374386410,1753284643436,-460.0,0.00020547,2]
[374386411,1753284643445,-460.0,0.00020547,2]
[374386412,1753284643454,-460.0,0.00020547,2]
[374386413,1753284643463,-664.28,0.00020547,2]
[374386414,1753284643472,-460.0,0.00020547,2]
[374386415,1753284643481,-460.0,0.00020547,2]
[374386416,1753284643492,-460.0,0.00020547,2]
[374386417,1753284643503,-1670.44,0.00020547,2]
[374386418,1753284643512,-460.0,0.00020547,2]
[374386419,1753284643521,-594.75,0.00020547,2]
[374386420,1753284643531,-460.0,0.00020547,2]
[374386421,1753284643540,-460.0,0.00020547,2]
[374386423,1753284643549,-7718.72,0.00020547,2]
[374386425,1753284643559,-460.0,0.00020547,2]
[374386427,1753284643570,-2108.24,0.00020547,2]
[374386429,1753284643579,-460.0,0.00020547,2]
[374386432,1753284643588,-460.0,0.00020547,2]
[374386434,1753284643598,-460.0,0.00020547,2]
[374386436,1753284643607,-460.0,0.00020547,2]
[374386438,1753284643616,-2407.52,0.00020547,2]
[374386440,1753284643628,-460.0,0.00020547,2]
[374386442,1753284643637,-460.0,0.00020547,2]
[374386444,1753284643646,-460.0,0.00020547,2]
[374386446,1753284643655,-460.0,0.00020547,2]
[374386448,1753284643665,-460.0,0.00020547,2]
[374386449,1753284643674,-2149.86,0.00020547,2]
[374386451,1753284643683,-1740.13,0.00020547,2]
[374386453,1753284643692,-460.0,0.00020547,2]
[374386455,1753284643702,-460.0,0.00020547,2]
[374386457,1753284643711,-460.0,0.00020547,2]
[374386459,1753284643720,-460.0,0.00020547,2]
[374386461,1753284643730,-460.0,0.00020547,2]
[374386463,1753284643739,-460.0,0.00020547,2]
[374386465,1753284643748,-460.0,0.00020547,2]
[374386467,1753284643758,-460.0,0.00020547,2]
[374386469,1753284643767,-460.0,0.00020547,2]
[374386471,1753284643777,-620.32,0.00020547,2]
[374386473,1753284643786,-1935.16,0.00020547,2]
[374386475,1753284643795,-460.0,0.00020547,2]
[374386477,1753284643805,-460.0,0.00020547,2]
[374386479,1753284643814,-1222.1,0.00020547,2]
[374386481,1753284643823,-460.0,0.00020547,2]
[374386483,1753284643832,-460.0,0.00020547,2]
[374386485,1753284643842,-1132.02,0.00020547,2]
[374386487,1753284643851,-804.88,0.00020547,2]
[374386489,1753284643860,-460.0,0.00020547,2]
[374386491,1753284643869,-472.82,0.00020547,2]
[374386493,1753284643880,-2564.0,0.00020547,2]
[374386495,1753284643889,-489.23,0.00020547,2]
[374386497,1753284643898,-460.0,0.00020547,2]
[374386498,1753284643908,-260.0,0.00020574,2]
[374386501,1753284643917,-325.56755015,0.00020575,2]
[374386502,1753284643929,-151.0,0.000206,4]
[374386504,1753284643939,-150.0,0.00020682,2]
[374386506,1753284643949,-420.0,0.00020686,2]
[374386508,1753284643959,-1110.116,0.00020764,2]
[374386510,1753284643969,-178.723,0.00020764,2]
[374386512,1753284643979,-624.01322793,0.00020778,2]
[374386514,1753284643989,-2000.0,0.00020816,2]
[374386516,1753284643999,-1622.75820574,0.00020816,2]
[374386518,1753284644008,-460.0,0.00020821,2]
[374386520,1753284644017,-460.0,0.00020821,2]
[374386522,1753284644026,-460.0,0.00020821,2]
[374386524,1753284644036,-460.0,0.00020821,2]
[374386526,1753284644046,-460.0,0.00020821,2]
[374386528,1753284644055,-460.0,0.00020821,2]
[374386530,1753284644064,-460.0,0.00020821,2]
[374386532,1753284644074,-460.0,0.00020821,2]
[374386534,1753284644083,-664.28,0.00020821,2]
[374386536,1753284644092,-460.0,0.00020821,2]
[374386538,1753284644104,-460.0,0.00020821,2]
[374386540,1753284644113,-460.0,0.00020821,2]
[374386543,1753284644125,-1670.44,0.00020821,2]
[374386545,1753284644134,-460.0,0.00020821,2]
[374386547,1753284644144,-594.75,0.00020821,2]
[374386548,1753284644152,-460.0,0.00020821,2]
[374386550,1753284644161,-460.0,0.00020821,2]
[374386552,1753284644171,-7718.72,0.00020821,2]
[374386554,1753284644180,-460.0,0.00020821,2]
[374386556,1753284644190,-2108.24,0.00020821,2]
[374386558,1753284644199,-460.0,0.00020821,2]
[374386560,1753284644209,-460.0,0.00020821,2]
[374386562,1753284644218,-460.0,0.00020821,2]
[374386564,1753284644228,-460.0,0.00020821,2]
[374386566,1753284644237,-2407.52,0.00020821,2]
[374386568,1753284644247,-153.58003465,0.00020821,2]
[374386570,1753284644256,-460.0,0.00020821,2]
[374386572,1753284644265,-460.0,0.00020821,2]
[374386574,1753284644275,-460.0,0.00020821,2]
[374386576,1753284644284,-460.0,0.00020821,2]
[374386578,1753284644294,-2149.86,0.00020821,2]
[374386580,1753284644303,-1740.13,0.00020821,2]
[374386582,1753284644312,-460.0,0.00020821,2]
[374386584,1753284644321,-460.0,0.00020821,2]
[374386586,1753284644330,-460.0,0.00020821,2]
[374386588,1753284644340,-460.0,0.00020821,2]
[374386590,1753284644349,-460.0,0.00020821,2]
[374386592,1753284644358,-460.0,0.00020821,2]
[374386594,1753284644367,-460.0,0.00020821,2]
[374386596,1753284644380,-460.0,0.00020821,2]
[374386598,1753284644389,-460.0,0.00020821,2]
[374386600,1753284644398,-620.32,0.00020821,2]
[374386602,1753284644408,-1935.16,0.00020821,2]
[374386604,1753284644417,-460.0,0.00020821,2]
[374386606,1753284644427,-460.0,0.00020821,2]
[374386607,1753284644436,-460.0,0.00020821,2]
[374386609,1753284644446,-460.0,0.00020821,2]
[374386611,1753284644455,-1132.02,0.00020821,2]
[374386613,1753284644464,-804.88,0.00020821,2]
[374386615,1753284644473,-460.0,0.00020821,2]
[374386617,1753284644483,-472.82,0.00020821,2]
[374386619,1753284644495,-2564.0,0.00020821,2]
[374386621,1753284644505,-489.23,0.00020821,2]
[374386623,1753284644515,-460.0,0.00020821,2]
[374386625,1753284644524,-500.0,0.00020857,2]
[374386627,1753284644534,-250.12389181,0.000209,2]
[374386629,1753284644544,-1339.59858964,0.00020939,2]
[374386631,1753284644553,-1828.01757661,0.00020989,2]
[374386633,1753284644563,-270.26850122,0.00021,2]
[374386647,1753284644690,-679.97430302,0.00021,10]
[374386649,1753284644700,-45540.53078961,0.00021,2]
[374386651,1753284644710,-460.0,0.00021095,2]
[374386653,1753284644720,-460.0,0.00021095,2]
[374386655,1753284644730,-460.0,0.00021095,2]
[374386657,1753284644739,-460.0,0.00021095,2]
[374386659,1753284644749,-460.0,0.00021095,2]
[374386661,1753284644758,-460.0,0.00021095,2]
[374386663,1753284644768,-460.0,0.00021095,2]
[374386665,1753284644777,-267.31435184,0.00021095,2]
[374386667,1753284644787,-664.28,0.00021095,2]
[374386669,1753284644796,-460.0,0.00021095,2]
[374386671,1753284644806,-563.03834934,0.00021095,2]
[374386673,1753284644815,-460.0,0.00021095,2]
[374386675,1753284644825,-1670.44,0.00021095,2]
[374386677,1753284644835,-460.0,0.00021095,2]
[374386679,1753284644845,-594.75,0.00021095,2]
[374386681,1753284644856,-460.0,0.00021095,2]
[374386683,1753284644866,-460.0,0.00021095,2]
[374386685,1753284644879,-7718.72,0.00021095,2]
[374386687,1753284644888,-460.0,0.00021095,2]
[374386689,1753284644899,-2108.24,0.00021095,2]
[374386691,1753284644908,-460.0,0.00021095,2]
[374386693,1753284644917,-460.0,0.00021095,2]
[374386695,1753284644926,-460.0,0.00021095,2]
[374386697,1753284644935,-460.0,0.00021095,2]
[374386699,1753284644945,-2407.52,0.00021095,2]
[374386701,1753284644955,-460.0,0.00021095,2]
[374386703,1753284644964,-460.0,0.00021095,2]
[374386704,1753284644974,-460.0,0.00021095,2]
[374386707,1753284644984,-460.0,0.00021095,2]
[374386709,1753284644994,-2149.86,0.00021095,2]
[374386711,1753284645003,-1740.13,0.00021095,2]
[374386712,1753284645012,-460.0,0.00021095,2]
[374386714,1753284645022,-460.0,0.00021095,2]
[374386716,1753284645031,-460.0,0.00021095,2]
[374386718,1753284645041,-460.0,0.00021095,2]
[374386720,1753284645051,-460.0,0.00021095,2]
[374386723,1753284645063,-460.0,0.00021095,2]
[374386725,1753284645073,-460.0,0.00021095,2]
[374386727,1753284645082,-460.0,0.00021095,2]
[374386729,1753284645091,-460.0,0.00021095,2]
[374386730,1753284645102,-620.32,0.00021095,2]
[374386732,1753284645111,-1935.16,0.00021095,2]
[374386734,1753284645121,-460.0,0.00021095,2]
[374386736,1753284645132,-460.0,0.00021095,2]
[374386739,1753284645142,-460.0,0.00021095,2]
[374386740,1753284645151,-460.0,0.00021095,2]
[374386742,1753284645160,-1132.02,0.00021095,2]
[374386744,1753284645169,-804.88,0.00021095,2]
[374386746,1753284645178,-460.0,0.00021095,2]
[374386748,1753284645187,-472.82,0.00021095,2]
[374386750,1753284645196,-2564.0,0.00021095,2]
[374386752,1753284645205,-489.23,0.00021095,2]
[374386754,1753284645215,-460.0,0.00021095,2]
[374386756,1753284645224,-360.0,0.00021122,2]
[374386758,1753284645234,-231.11583447,0.00021126,2]
[374386760,1753284645243,-215.84326551,0.00021131,2]
[374386762,1753284645252,-160.0,0.00021131,2]
[374386764,1753284645262,-160.0,0.00021131,2]
[374386766,1753284645271,-840.06856235,0.00021131,2]
[374386768,1753284645281,-214.67886746,0.00021131,2]
[374386770,1753284645291,-160.0,0.00021131,2]
[374386772,1753284645300,-160.0,0.00021131,2]
[374386774,1753284645310,-526.15909479,0.00021131,2]
[374386776,1753284645320,-12622.36869388,0.00021131,2]
[374386778,1753284645330,-160.0,0.00021131,2]
[374386780,1753284645340,-160.0,0.00021131,2]
[374386782,1753284645350,-160.0,0.00021131,2]
[374386785,1753284645359,-476.696448,0.00021131,2]
[374386787,1753284645369,-160.0,0.00021131,2]
[374386789,1753284645380,-160.0,0.00021132,2]
[374386791,1753284645390,-160.0,0.00021132,2]
[374386793,1753284645399,-151.0,0.000212,3]
[374386795,1753284645409,-500.0,0.00021264,2]
[374386797,1753284645419,-156.64231511,0.00021345,2]
[374386799,1753284645429,-1500.0,0.00021364,2]
[374386801,1753284645438,-460.0,0.00021369,2]
[374386803,1753284645448,-460.0,0.00021369,2]
[374386805,1753284645457,-460.0,0.00021369,2]
[374386807,1753284645467,-460.0,0.00021369,2]
[374386809,1753284645477,-460.0,0.00021369,2]
[374386811,1753284645487,-460.0,0.00021369,2]
[374386813,1753284645500,-460.0,0.00021369,2]
[374386815,1753284645509,-664.28,0.00021369,2]
[374386817,1753284645518,-460.0,0.00021369,2]
[374386819,1753284645527,-460.0,0.00021369,2]
[374386821,1753284645538,-1670.44,0.00021369,2]
[374386823,1753284645548,-460.0,0.00021369,2]
[374386825,1753284645557,-594.75,0.00021369,2]
[374386827,1753284645567,-460.0,0.00021369,2]
[374386829,1753284645577,-535.71956193,0.00021369,2]
[374386831,1753284645587,-7718.72,0.00021369,2]
[374386833,1753284645596,-460.0,0.00021369,2]
[374386835,1753284645605,-2108.24,0.00021369,2]
[374386837,1753284645615,-460.0,0.00021369,2]
[374386839,1753284645626,-460.0,0.00021369,2]
[374386841,1753284645636,-460.0,0.00021369,2]
[374386843,1753284645645,-2407.52,0.00021369,2]
[374386845,1753284645655,-460.0,0.00021369,2]
[374386847,1753284645665,-460.0,0.00021369,2]
[374386849,1753284645673,-460.0,0.00021369,2]
[374386851,1753284645683,-272.411376,0.00021369,2]
[374386853,1753284645692,-2149.86,0.00021369,2]
[374386855,1753284645702,-1740.13,0.00021369,2]
[374386857,1753284645713,-460.0,0.00021369,2]
[374386860,1753284645723,-460.0,0.00021369,2]
[374386862,1753284645732,-460.0,0.00021369,2]
[374386864,1753284645742,-460.0,0.00021369,2]
[374386865,1753284645751,-460.0,0.00021369,2]
[374386867,1753284645760,-460.0,0.00021369,2]
[374386870,1753284645770,-460.0,0.00021369,2]
[374386872,1753284645779,-212.19304691,0.00021369,2]
[374386873,1753284645789,-460.0,0.00021369,2]
[374386876,1753284645798,-620.32,0.00021369,2]
[374386878,1753284645807,-1935.16,0.00021369,2]
[374386879,1753284645817,-460.0,0.00021369,2]
[374386881,1753284645826,-460.0,0.00021369,2]
[374386884,1753284645835,-460.0,0.00021369,2]
[374386886,1753284645844,-1132.02,0.00021369,2]
[374386888,1753284645854,-804.88,0.00021369,2]
[374386889,1753284645863,-460.0,0.00021369,2]
[374386891,1753284645872,-472.82,0.00021369,2]
[374386893,1753284645882,-2564.0,0.00021369,2]
[374386895,1753284645892,-489.23,0.00021369,2]
[374386897,1753284645901,-460.0,0.00021369,2]
[374386899,1753284645911,-500.0,0.000214,2]
[374386900,1753284645922,-500.0,0.000214,2]
[374386901,1753284645932,-500.0,0.00021529,2]
[374386902,1753284645941,-500.0,0.00021529,2]
[374386903,1753284645950,-500.0,0.00021529,2]
[374386904,1753284645959,-500.0,0.00021529,2]
[374386906,1753284645969,-500.0,0.00021529,2]
[374386908,1753284645979,-500.0,0.00021529,2]
[374386910,1753284645988,-500.0,0.00021529,2]
[374386912,1753284645999,-500.0,0.00021529,2]
[374386914,1753284646008,-500.8524135,0.00021529,2]
[374386916,1753284646018,-500.0,0.00021529,2]
[374386918,1753284646028,-2023.9,0.00021566,5]
[374386920,1753284646037,-500.0,0.00021571,2]
[374386922,1753284646046,-500.0,0.00021571,2]
[374386924,1753284646057,-500.0,0.00021571,2]
[374386926,1753284646066,-500.0,0.00021571,2]
[374386928,1753284646076,-552.78730248,0.00021571,2]
[374386930,1753284646085,-500.0,0.00021571,2]
[374386932,1753284646095,-500.0,0.00021571,2]
[374386934,1753284646104,-641.49978633,0.00021571,2]
[374386936,1753284646113,-500.0,0.00021571,2]
[374386938,1753284646123,-500.0,0.00021571,2]
[374386940,1753284646133,-386.60069791,0.00021571,2]
[374386942,1753284646143,-500.0,0.00021571,2]
[374386944,1753284646152,-500.0,0.00021571,2]
[374386946,1753284646161,-500.0,0.00021571,2]
[374386948,1753284646171,-500.0,0.00021571,2]
[374386950,1753284646180,-500.0,0.00021571,2]
[374386952,1753284646189,-500.0,0.00021571,2]
[374386954,1753284646199,-500.0,0.00021571,2]
[374386956,1753284646209,-500.0,0.00021571,2]
[374386958,1753284646219,-500.0,0.00021571,2]
[374386960,1753284646229,-500.0,0.00021571,2]
[374386962,1753284646239,-150.0,0.00021581,2]
[374386964,1753284646250,-412.74,0.00021643,2]
[374386966,1753284646261,-510.32,0.00021643,2]
[374386968,1753284646273,-460.0,0.00021643,2]
[374386970,1753284646282,-460.0,0.00021643,2]
[374386972,1753284646291,-460.0,0.00021643,2]
[374386974,1753284646301,-460.0,0.00021643,2]
[374386976,1753284646310,-664.28,0.00021643,2]
[374386978,1753284646320,-460.0,0.00021643,2]
[374386980,1753284646329,-460.0,0.00021643,2]
[374386982,1753284646338,-1670.44,0.00021643,2]
[374386984,1753284646348,-413.92198706,0.00021643,2]
[374386986,1753284646357,-594.75,0.00021643,2]
[374386988,1753284646367,-460.0,0.00021643,2]
[374386990,1753284646376,-7718.72,0.00021643,2]
[374386992,1753284646385,-460.0,0.00021643,2]
[374386994,1753284646395,-2108.24,0.00021643,2]
[374386996,1753284646405,-186.5,0.00021643,2]
[374386998,1753284646414,-460.0,0.00021643,2]
[374387000,1753284646424,-460.0,0.00021643,2]
[374387002,1753284646433,-2407.52,0.00021643,2]
[374387004,1753284646442,-460.0,0.00021643,2]
[374387006,1753284646452,-460.0,0.00021643,2]
[374387008,1753284646461,-460.0,0.00021643,2]
[374387010,1753284646471,-2149.86,0.00021643,2]
[374387012,1753284646481,-1740.13,0.00021643,2]
[374387014,1753284646493,-460.0,0.00021643,2]
[374387016,1753284646504,-460.0,0.00021643,2]
[374387018,1753284646513,-460.0,0.00021643,2]
[374387020,1753284646523,-460.0,0.00021643,2]
[374387022,1753284646533,-460.0,0.00021643,2]
[374387025,1753284646542,-460.0,0.00021643,2]
[374387028,1753284646553,-460.0,0.00021643,2]
[374387031,1753284646563,-460.0,0.00021643,2]
[374387035,1753284646574,-620.32,0.00021643,2]
[374387037,1753284646584,-1935.16,0.00021643,2]
[374387039,1753284646593,-460.0,0.00021643,2]
[374387040,1753284646602,-460.0,0.00021643,2]
[374387043,1753284646612,-516.19381089,0.00021643,2]
[374387045,1753284646622,-804.88,0.00021643,2]
[374387046,1753284646634,-1132.02,0.00021643,2]
[374387049,1753284646644,-460.0,0.00021643,2]
[374387050,1753284646653,-472.82,0.00021643,2]
[374387053,1753284646663,-2564.0,0.00021643,2]
[374387055,1753284646673,-489.23,0.00021643,2]
[374387057,1753284646682,-460.0,0.00021643,2]
[374387058,1753284646692,-460.0,0.0002167,2]
[374387060,1753284646703,-800.0,0.00021724,2]
[374387062,1753284646712,-151.0,0.000218,4]
[374387064,1753284646721,-151.0,0.000218,4]
[374387066,1753284646730,-1339.59858964,0.0002187,2]
[374387068,1753284646740,-2023.9,0.00021887,5]
[374387070,1753284646749,-170.6692493,0.000219,2]
[374387072,1753284646759,-460.0,0.00021917,2]
[374387074,1753284646768,-460.0,0.00021917,2]
[374387076,1753284646778,-460.0,0.00021917,2]
[374387078,1753284646788,-664.28,0.00021917,2]
[374387080,1753284646797,-460.0,0.00021917,2]
[374387083,1753284646806,-460.0,0.00021917,2]
[374387084,1753284646816,-1670.44,0.00021917,2]
[374387086,1753284646825,-594.75,0.00021917,2]
[374387089,1753284646835,-460.0,0.00021917,2]
[374387091,1753284646844,-7718.72,0.00021917,2]
[374387093,1753284646855,-460.0,0.00021917,2]
[374387095,1753284646866,-2108.24,0.00021917,2]
[374387097,1753284646876,-460.0,0.00021917,2]
[374387098,1753284646885,-460.0,0.00021917,2]
[374387100,1753284646895,-2407.52,0.00021917,2]
[374387102,1753284646904,-460.0,0.00021917,2]
[374387104,1753284646913,-460.0,0.00021917,2]
[374387106,1753284646922,-460.0,0.00021917,2]
[374387108,1753284646932,-151.254061,0.00021917,2]
[374387110,1753284646942,-1740.13,0.00021917,2]
[374387112,1753284646951,-460.0,0.00021917,2]